Workbook

Sheet Declaração de Fluxo Monetário
B1: Fluxo Monetário Declaração
B3: Início do ano fiscal: | D3: (Pré) Arranque | E3: =UPPER(TEXT(DataInícioAnoFiscal,"MMM")) -> JAN | F3: =UPPER(TEXT(EOMONTH(DataInícioAnoFiscal,1),"MMM")) -> FEV | G3: =UPPER(TEXT(EOMONTH(DataInícioAnoFiscal,2),"MMM")) -> MAR | H3: =UPPER(TEXT(EOMONTH(DataInícioAnoFiscal,3),"MMM")) -> ABR | I3: =UPPER(TEXT(EOMONTH(DataInícioAnoFiscal,4),"MMM")) -> MAI | J3: =UPPER(TEXT(EOMONTH(DataInícioAnoFiscal,5),"MMM")) -> JUN | K3: =UPPER(TEXT(EOMONTH(DataInícioAnoFiscal,6),"MMM")) -> JUL | L3: =UPPER(TEXT(EOMONTH(DataInícioAnoFiscal,7),"MMM")) -> AGO | M3: =UPPER(TEXT(EOMONTH(DataInícioAnoFiscal,8),"MMM")) -> SET | N3: =UPPER(TEXT(EOMONTH(DataInícioAnoFiscal,9),"MMM")) -> OUT | O3: =UPPER(TEXT(EOMONTH(DataInícioAnoFiscal,10),"MMM")) -> NOV | P3: =UPPER(TEXT(EOMONTH(DataInícioAnoFiscal,11),"MMM")) -> DEZ | R3: Total
B4: 2012-01-05 | D4: EST | E4: =DataInícioAnoFiscal -> 2012-01-05 | F4: =EOMONTH(E4,0)+DAY(DataInícioAnoFiscal) -> 2012-02-05 | G4: =EOMONTH(F4,0)+DAY(DataInícioAnoFiscal) -> 2012-03-05 | H4: =EOMONTH(G4,0)+DAY(DataInícioAnoFiscal) -> 2012-04-05 | I4: =EOMONTH(H4,0)+DAY(DataInícioAnoFiscal) -> 2012-05-05 | J4: =EOMONTH(I4,0)+DAY(DataInícioAnoFiscal) -> 2012-06-05 | K4: =EOMONTH(J4,0)+DAY(DataInícioAnoFiscal) -> 2012-07-05 | L4: =EOMONTH(K4,0)+DAY(DataInícioAnoFiscal) -> 2012-08-05 | M4: =EOMONTH(L4,0)+DAY(DataInícioAnoFiscal) -> 2012-09-05 | N4: =EOMONTH(M4,0)+DAY(DataInícioAnoFiscal) -> 2012-10-05 | O4: =EOMONTH(N4,0)+DAY(DataInícioAnoFiscal) -> 2012-11-05 | P4: =EOMONTH(O4,0)+DAY(DataInícioAnoFiscal) -> 2012-12-05 | R4: Item EST
B6: Dinheiro em Caixa (início do mês) | D6: 100 | E6: =D48 -> 100 | F6: =E48 -> -125 | G6: 45 | H6: -1 | I6: 224 | J6: 269 | K6: 269 | L6: 269 | M6: 269 | N6: 269 | O6: 269 | P6: 269 | R6: =P6 -> 269
B8: Recebimentos de Caixa
B9: Vendas a Dinheiro | E9: 125 | F9: 120 | G9: 130 | H9: 100 | R9: =SUM(RecibosEmDinheiro[[#This Row],[Período 0]:[Período 12]]) -> 475
B10: Coletas de contas de crédito | H10: 75 | I10: 45 | R10: =SUM(RecibosEmDinheiro[[#This Row],[Período 0]:[Período 12]]) -> 120
B11: Empréstimo/Outra injeção de capital | E11: 50 | F11: 50 | G11: 50 | H11: 50 | R11: =SUM(RecibosEmDinheiro[[#This Row],[Período 0]:[Período 12]]) -> 200
B12: Total | D12: =SUBTOTAL(109,RecibosEmDinheiro[Período 0]) -> 0 | E12: =SUBTOTAL(109,RecibosEmDinheiro[Período 1]) -> 175 | F12: =SUBTOTAL(109,RecibosEmDinheiro[Período 2]) -> 170 | G12: =SUBTOTAL(109,RecibosEmDinheiro[Período 3]) -> 180 | H12: =SUBTOTAL(109,RecibosEmDinheiro[Período 4]) -> 225 | I12: =SUBTOTAL(109,RecibosEmDinheiro[Período 5]) -> 45 | J12: =SUBTOTAL(109,RecibosEmDinheiro[Período 6]) -> 0 | K12: =SUBTOTAL(109,RecibosEmDinheiro[Período 7]) -> 0 | L12: =SUBTOTAL(109,RecibosEmDinheiro[Período 8]) -> 0 | M12: =SUBTOTAL(109,RecibosEmDinheiro[Período 9]) -> 0 | N12: =SUBTOTAL(109,RecibosEmDinheiro[Período 10]) -> 0 | O12: =SUBTOTAL(109,RecibosEmDinheiro[Período 11]) -> 0 | P12: =SUBTOTAL(109,RecibosEmDinheiro[Período 12]) -> 0 | R12: =SUBTOTAL(109,RecibosEmDinheiro[Total]) -> 795
B13: Dinheiro Total Disponível (antes do fecho) | D13: =D6+SUM(RecibosEmDinheiro[Período 0]) -> 100 | E13: =E6+SUM(RecibosEmDinheiro[Período 1]) -> 275 | F13: =F6+SUM(RecibosEmDinheiro[Período 2]) -> 45 | G13: =G6+SUM(RecibosEmDinheiro[Período 3]) -> 225 | H13: =H6+SUM(RecibosEmDinheiro[Período 4]) -> 224 | I13: =I6+SUM(RecibosEmDinheiro[Período 5]) -> 269 | J13: =J6+SUM(RecibosEmDinheiro[Período 6]) -> 269 | K13: =K6+SUM(RecibosEmDinheiro[Período 7]) -> 269 | L13: =L6+SUM(RecibosEmDinheiro[Período 8]) -> 269 | M13: =M6+SUM(RecibosEmDinheiro[Período 9]) -> 269 | N13: =N6+SUM(RecibosEmDinheiro[Período 10]) -> 269 | O13: =O6+SUM(RecibosEmDinheiro[Período 11]) -> 269 | P13: =P6+SUM(RecibosEmDinheiro[Período 12]) -> 269 | R13: =R6+SUM(RecibosEmDinheiro[Total]) -> 1064
B15: Numerário Pago
B16: Compras (mercadoria) | E16: 400 | G16: 226 | R16: =SUM(PagoEmDinheiro[[#This Row],[Período 0]:[Período 12]]) -> 626
B17: Compras (especificar) | R17: =SUM(PagoEmDinheiro[[#This Row],[Período 0]:[Período 12]]) -> 0
B18: Compras (especificar) | R18: =SUM(PagoEmDinheiro[[#This Row],[Período 0]:[Período 12]]) -> 0
B19: Salários brutos (quantias exatas) | R19: =SUM(PagoEmDinheiro[[#This Row],[Período 0]:[Período 12]]) -> 0
B20: Custos salariais (impostos, etc.) | R20: =SUM(PagoEmDinheiro[[#This Row],[Período 0]:[Período 12]]) -> 0
B21: Serviços externos | R21: =SUM(PagoEmDinheiro[[#This Row],[Período 0]:[Período 12]]) -> 0
B22: Consumíveis (escritório e oper.) | R22: =SUM(PagoEmDinheiro[[#This Row],[Período 0]:[Período 12]]) -> 0
B23: Reparações e manutenções | R23: =SUM(PagoEmDinheiro[[#This Row],[Período 0]:[Período 12]]) -> 0
B24: Publicidade | R24: =SUM(PagoEmDinheiro[[#This Row],[Período 0]:[Período 12]]) -> 0
B25: Veículo, entregas e viagens | R25: =SUM(PagoEmDinheiro[[#This Row],[Período 0]:[Período 12]]) -> 0
B26: Contabilidade e Jurídico | R26: =SUM(PagoEmDinheiro[[#This Row],[Período 0]:[Período 12]]) -> 0
B27: Aluguer | R27: =SUM(PagoEmDinheiro[[#This Row],[Período 0]:[Período 12]]) -> 0
B28: Telefone | R28: =SUM(PagoEmDinheiro[[#This Row],[Período 0]:[Período 12]]) -> 0
B29: Utilitários | R29: =SUM(PagoEmDinheiro[[#This Row],[Período 0]:[Período 12]]) -> 0
B30: Seguro | R30: =SUM(PagoEmDinheiro[[#This Row],[Período 0]:[Período 12]]) -> 0
B31: Impostos (imobiliário, etc.) | R31: =SUM(PagoEmDinheiro[[#This Row],[Período 0]:[Período 12]]) -> 0
B32: Juros | R32: =SUM(PagoEmDinheiro[[#This Row],[Período 0]:[Período 12]]) -> 0
B33: Outras despesas (especificar) | R33: =SUM(PagoEmDinheiro[[#This Row],[Período 0]:[Período 12]]) -> 0
B34: Outros (especificar) | R34: =SUM(PagoEmDinheiro[[#This Row],[Período 0]:[Período 12]]) -> 0
B35: Outros (especificar) | R35: =SUM(PagoEmDinheiro[[#This Row],[Período 0]:[Período 12]]) -> 0
B36: Diversos | R36: =SUM(PagoEmDinheiro[[#This Row],[Período 0]:[Período 12]]) -> 0
B37: Total | D37: =SUBTOTAL(109,PagoEmDinheiro[Período 0]) -> 0 | E37: =SUBTOTAL(109,PagoEmDinheiro[Período 1]) -> 400 | F37: =SUBTOTAL(109,PagoEmDinheiro[Período 2]) -> 0 | G37: =SUBTOTAL(109,PagoEmDinheiro[Período 3]) -> 226 | H37: =SUBTOTAL(109,PagoEmDinheiro[Período 4]) -> 0 | I37: =SUBTOTAL(109,PagoEmDinheiro[Período 5]) -> 0 | J37: =SUBTOTAL(109,PagoEmDinheiro[Período 6]) -> 0 | K37: =SUBTOTAL(109,PagoEmDinheiro[Período 7]) -> 0 | L37: =SUBTOTAL(109,PagoEmDinheiro[Período 8]) -> 0 | M37: =SUBTOTAL(109,PagoEmDinheiro[Período 9]) -> 0 | N37: =SUBTOTAL(109,PagoEmDinheiro[Período 10]) -> 0 | O37: =SUBTOTAL(109,PagoEmDinheiro[Período 11]) -> 0 | P37: =SUBTOTAL(109,PagoEmDinheiro[Período 12]) -> 0 | R37: =SUBTOTAL(109,PagoEmDinheiro[Total]) -> 626
B39: Numerário Pago (Sem Lucro nem Prejuízo)
B40: Pagamento principal de empréstimo | R40: =SUM(PagoEmDinheiro2[[#This Row],[Período 0]:[Período 12]]) -> 0
B41: Compra de capital (especificar) | R41: =SUM(PagoEmDinheiro2[[#This Row],[Período 0]:[Período 12]]) -> 0
B42: Outros custos de arranque | R42: =SUM(PagoEmDinheiro2[[#This Row],[Período 0]:[Período 12]]) -> 0
B43: Reserva e/ou caução | R43: =SUM(PagoEmDinheiro2[[#This Row],[Período 0]:[Período 12]]) -> 0
B44: Levantamento dos proprietários | R44: =SUM(PagoEmDinheiro2[[#This Row],[Período 0]:[Período 12]]) -> 0
B45: Total | D45: =SUBTOTAL(109,PagoEmDinheiro2[Período 0]) -> 0 | E45: =SUBTOTAL(109,PagoEmDinheiro2[Período 1]) -> 0 | F45: =SUBTOTAL(109,PagoEmDinheiro2[Período 2]) -> 0 | G45: =SUBTOTAL(109,PagoEmDinheiro2[Período 3]) -> 0 | H45: =SUBTOTAL(109,PagoEmDinheiro2[Período 4]) -> 0 | I45: =SUBTOTAL(109,PagoEmDinheiro2[Período 5]) -> 0 | J45: =SUBTOTAL(109,PagoEmDinheiro2[Período 6]) -> 0 | K45: =SUBTOTAL(109,PagoEmDinheiro2[Período 7]) -> 0 | L45: =SUBTOTAL(109,PagoEmDinheiro2[Período 8]) -> 0 | M45: =SUBTOTAL(109,PagoEmDinheiro2[Período 9]) -> 0 | N45: =SUBTOTAL(109,PagoEmDinheiro2[Período 10]) -> 0 | O45: =SUBTOTAL(109,PagoEmDinheiro2[Período 11]) -> 0 | P45: =SUBTOTAL(109,PagoEmDinheiro2[Período 12]) -> 0 | R45: =SUBTOTAL(109,PagoEmDinheiro2[Total]) -> 0
B46: Numerário Pago Total | D46: =SUM(PagoEmDinheiro[Período 0],PagoEmDinheiro2[Período 0]) -> 0 | E46: =SUM(PagoEmDinheiro[Período 1],PagoEmDinheiro2[Período 1]) -> 400 | F46: =SUM(PagoEmDinheiro[Período 2],PagoEmDinheiro2[Período 2]) -> 0 | G46: =SUM(PagoEmDinheiro[Período 3],PagoEmDinheiro2[Período 3]) -> 226 | H46: =SUM(PagoEmDinheiro[Período 4],PagoEmDinheiro2[Período 4]) -> 0 | I46: =SUM(PagoEmDinheiro[Período 5],PagoEmDinheiro2[Período 5]) -> 0 | J46: =SUM(PagoEmDinheiro[Período 6],PagoEmDinheiro2[Período 6]) -> 0 | K46: =SUM(PagoEmDinheiro[Período 7],PagoEmDinheiro2[Período 7]) -> 0 | L46: =SUM(PagoEmDinheiro[Período 8],PagoEmDinheiro2[Período 8]) -> 0 | M46: =SUM(PagoEmDinheiro[Período 9],PagoEmDinheiro2[Período 9]) -> 0 | N46: =SUM(PagoEmDinheiro[Período 10],PagoEmDinheiro2[Período 10]) -> 0 | O46: =SUM(PagoEmDinheiro[Período 11],PagoEmDinheiro2[Período 11]) -> 0 | P46: =SUM(PagoEmDinheiro[Período 12],PagoEmDinheiro2[Período 12]) -> 0 | R46: =SUM(PagoEmDinheiro[Total],PagoEmDinheiro2[Total]) -> 626
B48: Posição de Caixa (final do mês) | D48: =D13-D46 -> 100 | E48: -125 | F48: 45 | G48: -1 | H48: 224 | I48: 269 | J48: 269 | K48: 269 | L48: 269 | M48: 269 | N48: 269 | O48: 269 | P48: 269 | R48: =R13-R46 -> 438
